Cogmind - Beta 16 @@@ ROGUE MODE // 2026.01.11 @ 14:32:02 Player: PE-P51 Result: Destroyed by as-35709 with Assembled Blade Performance ------------- Evolutions (1) 500 Regions Visited (5) 1000 Robots Destroyed (69) 345 Value Destroyed (1737) 1737 Prototype IDs (32) 640 Alien Tech Used (0) 0 Bonus (480) 480 TOTAL SCORE: 4702 Bonus ------- Follower Combat Kills 216 Aligned with FarCom 300 Friendly Fire -36 Cogmind --------- Core Integrity 0/400 Matter 224/300 Energy 100/100 System Corruption 11% Temperature Cool (0) Movement Core (1350) Ox26 Location -9/Exiles Parts ------- > --- POWER (1) -------- (None) > --- PROPULSION (3) --- (None) > --- UTILITY (3) ------ Improved Heat Sink Huge Storage Unit > --- WEAPON (2) ------- (None) > --- INVENTORY (25) --- Improved Treads Advanced Treads Advanced Treads Compact Wheel Improved Flight Unit Improved Flight Unit Improved Flight Unit Cesium-ion Thruster Huge Storage Unit Hacking Suite Hacking Suite Trap Reconfigurator Heavy Assault Rifle Heavy Assault Rifle Heavy Assault Rifle Heavy Assault Rifle Heavy Assault Rifle Shotgun Improved Light Cannon Assault Cannon Assault Cannon Assault Cannon Rocket Launcher Welding Torch Katana Peak State ------------ > --- POWER ------------ (None) > --- PROPULSION ------- Advanced Treads Wheel Wheel > --- UTILITY ---------- Improved Heat Sink Huge Storage Unit > --- WEAPON ----------- AWS/Thermal > --- INVENTORY -------- Improved Treads Advanced Treads Advanced Treads Compact Wheel Improved Flight Unit Improved Flight Unit Improved Flight Unit Cesium-ion Thruster Huge Storage Unit Improved Terrain Scanner Hacking Suite Hacking Suite Heavy Assault Rifle Heavy Assault Rifle Heavy Assault Rifle Heavy Assault Rifle Heavy Assault Rifle Shotgun Improved Light Cannon Assault Cannon Assault Cannon Assault Cannon Rocket Launcher Welding Torch Katana [Rating: 31] Favorites ----------- Power Light Nuclear Core Engine Ion Engine Power Core Light Nuclear Core Propulsion Advanced Treads Treads Advanced Treads Leg Aluminum Leg Wheel Wheel Flight Unit Improved Flight Unit Utility Huge Storage Unit Device Improved Heat Sink Storage Huge Storage Unit Processor Targeting Computer Protection Medium Armor Plating Weapon Assault Cannon Energy Gun Small Laser Ballistic Gun Shotgun Ballistic Cannon Assault Cannon Launcher Rocket Launcher Build | -11 -10 -10 -9 -9 -9 ------- Run | Yrd Mat Min Mat Min Exi Slots Evolved 2 | . . . 2 . . Power . | . . . . . . Propulsion 1 | . . . 1 . . Utility 1 | . . . 1 . . Weapon . | . . . . . . Parts Attached 54 | . 20 2 24 4 4 Power 6 | . 3 1 1 1 . Engine 3 | . 3 . . . . Core 3 | . . 1 1 1 . Reactor . | . . . . . . Propulsion 19 | . 9 . 7 1 2 Treads 9 | . 2 . 6 1 . Leg 1 | . 1 . . . . Wheel 8 | . 5 . 1 . 2 Hover . | . . . . . . Flight 1 | . 1 . . . . Utility 11 | . 2 1 6 1 1 Device 3 | . . . 1 1 1 Storage 2 | . 1 . 1 . . Processor 1 | . 1 . . . . Hackware . | . . . . . . Protection 5 | . . 1 4 . . Artifact . | . . . . . . Weapon 18 | . 6 . 10 1 1 Energy Gun 2 | . . . 1 . 1 Energy Cannon . | . . . . . . Ballistic Gun 12 | . 6 . 6 . . Ballistic Cannon 3 | . . . 2 1 . Launcher 1 | . . . 1 . . Special Weapon . | . . . . . . Impact Weapon . | . . . . . . Slashing Weapon . | . . . . . . Piercing Weapon . | . . . . . . Special Melee Weapon . | . . . . . . Unidentified Prototypes 3 | . 1 . 2 . . Parts Lost 18 | . 4 . 4 6 4 Power 5 | . 2 . 1 2 . Propulsion 6 | . . . 2 1 3 Utility 4 | . . . 1 2 1 Weapon 3 | . 2 . . 1 . Highest Loss Streak 4 | . 2 . 2 2 4 To Critical Strikes 2 | . . . . 1 1 Average Backups 21 | . 11 23 24 23 24 Power . | . . . 1 . . Propulsion 7 | . 5 9 9 8 8 Utility 4 | . 2 5 4 4 4 Weapon 7 | . 2 6 9 9 11 Tool/Special . | . . . . . . Unused Backups 34 | . 3 . 15 . 16 Power 1 | . 1 . . . . Propulsion 11 | . 2 . 6 . 3 Utility 5 | . . . 2 . 3 Weapon 16 | . . . 7 . 9 Tool/Special 1 | . . . . . 1 Average Slot Usage (%) 92 | . 94 100 98 84 58 Engine 3 | . 13 . . . . Core 7 | . . 13 10 6 . Treads 19 | . 9 . 24 32 11 Wheel 9 | . 13 27 7 . 20 Device 4 | . . . 3 10 15 Storage 11 | . 14 14 11 11 11 Processor 2 | . 9 5 . . . Protection 9 | . . 8 18 1 . Ballistic Gun 15 | . 26 28 15 . . Ballistic Cannon 7 | . . . 6 21 . Peak Build Rating 31 | . 14 15 28 28 31 Average Rating 19 | . 7 14 24 25 16 On Entrance 15 | 6 6 12 15 28 24 Avg Prop Armor Cover (%) 17 | . 1 . . . 18 Naked Turns . | . . . . . . Heaviest Build 109 | 11 89 94 109 109 89 Greatest Support 67 | 20 40 20 67 66 66 Greatest Overweight (x) 8 | . 8 4 4 1 4 Average Overweight (x) 2 | . 2 4 1 1 3 Largest Inventory Capacity 25 | . 25 25 25 25 25 Average Capacity 24 | . 22 25 25 25 25 Most Carried 25 | . 21 24 25 25 25 Average Carried 21 | . 11 23 24 23 24 Final Capacity 25 | 8 25 25 25 25 25 Final Carried 25 | 6 21 24 25 23 25 Class Distribution -------------------- 90% | Mutant 9% | Scavenger-Mutant Dominant Class ---------------- Mutant | -10/Materials Mutant | -10/Mines Mutant | -9/Materials Mutant | -9/Mines Mutant | -9/Exiles Resources | -11 -10 -10 -9 -9 -9 ----------- Run | Yrd Mat Min Mat Min Exi Matter Collected 2391 | 200 582 219 936 454 . Remotely . | . . . . . . Salvage Created 2250 | . 775 157 966 352 . Parts 141 | . 39 13 70 19 . Haulers Intercepted 4 | . 1 . 3 . . Recyclers Shooed 3 | . 3 . . . . Parts Field Recycled . | . . . . . . Retrieved Matter . | . . . . . . Parts Self-Destructed . | . . . . . . Prevented . | . . . . . . Parts Restored . | . . . . . . Kills | -11 -10 -10 -9 -9 -9 ------- Run | Yrd Mat Min Mat Min Exi Combat Hostiles Destroyed 46 | . 12 2 20 12 . Guns 25 | . 12 2 11 . . Cannons 18 | . . . 6 12 . AOE 3 | . . . 3 . . Classes Destroyed 12 | . 7 2 2 1 . Worker 5 | . . 1 3 1 . Builder 2 | . 1 . . 1 . Tunneler 3 | . . 3 . . . Hauler 4 | . 1 . 3 . . Recycler 4 | . 3 . 1 . . Operator 2 | . 1 . 1 . . Watcher 3 | . 1 . 2 . . Swarmer 8 | . 3 . 5 . . Grunt 28 | . 9 2 8 9 . Brawler 2 | . . . 1 1 . Duelist 2 | . . . . 2 . Sentry 6 | . . . 6 . . Best Kill Streak 4 | . 4 3 4 3 . Combat Bots Only 3 | . 3 2 3 3 . Max Kills in Single Turn 4 | . 1 1 4 1 . Gunslinging . | . . . . . . Exploded 3 | . . . 3 . . Melee . | . . . . . . Uniques/NPCs Destroyed . | . . . . . . Combat | -11 -10 -10 -9 -9 -9 -------- Run | Yrd Mat Min Mat Min Exi Hostile Shots Fired 329 | . 103 20 100 70 36 Missed 94 | . 32 3 32 19 8 Hits 235 | . 71 17 68 51 28 Melee 4 | . . . . 2 2 Projectile 231 | . 71 17 68 49 26 Critical Strikes 15 | . 3 . 3 1 8 Damage Taken 3190 | . 862 197 950 669 512 Core 611 | . 171 31 105 45 259 Absorbed by Shields . | . . . . . . Regen/Repaired (Parts) 8 | . . . 8 . . Core Remaining (%) 59 | 100 . 19 . . . Volleys Fired 229 | . 94 9 84 42 . Largest 2 | . 2 2 2 2 . Hottest 80 | . 80 46 74 74 . Shots Fired 453 | . 185 18 169 81 . Gun 301 | . 185 18 98 . . Cannon 151 | . . . 70 81 . Launcher 1 | . . . 1 . . Special . | . . . . . . Kinetic 438 | . 171 18 168 81 . Thermal 9 | . 9 . . . . Explosive 1 | . . . 1 . . Electromagnetic 5 | . 5 . . . . Robot Hit Streak 15 | . 13 6 15 5 . Robot Miss Streak 6 | . 3 2 6 4 . Penetration Max . | . . . . . . Secondary Targets 5 | . 3 1 1 . . Max Gunslinging Chain 1 | . 1 1 1 . . Shots Hit Robots 272 | . 118 13 96 45 . Core Hits 115 | . 45 12 43 15 . Critical Kills 1 | . 1 . . . . Critical Parts Destroyed . | . . . . . . Critical Strikes 4 | . 1 . . 3 . Destroy 1 | . 1 . . . . Blast 3 | . . . . 3 . Melee Attacks . | . . . . . . Impact . | . . . . . . Slashing . | . . . . . . Piercing . | . . . . . . Sneak Attacks . | . . . . . . Combat Hostiles . | . . . . . . Follow-up Attacks . | . . . . . . Damage Inflicted 4731 | . 1273 179 2007 1228 44 Guns 2434 | . 1256 152 1026 . . Cannons 1917 | . . . 735 1182 . Explosions 188 | . . . 188 . . Melee . | . . . . . . Ramming 192 | . 17 27 58 46 44 Kinetic 4296 | . 1201 152 1761 1182 . Thermal 43 | . 43 . . . . Explosive 188 | . . . 188 . . Electromagnetic 12 | . 12 . . . . Impact . | . . . . . . Slashing . | . . . . . . Piercing . | . . . . . . Highest Corruption 11 | . 2 2 4 11 11 Average Corruption 4 | . 2 2 4 6 11 Corruption Purged . | . . . . . . Corruption Blocked . | . . . . . . Effects 77 | . 16 2 16 33 10 Message Errors 19 | . 2 1 3 9 4 Matter Fused 19 | . 7 . 5 6 1 Heat Flow Errors 13 | . 2 1 3 6 1 Energy Discharges 6 | . . . . 3 3 Data Loss (minor) 4 | . . . 1 2 1 Data Loss (major) 3 | . . . 2 1 . Misfires 7 | . 3 . 2 2 . Alerts 3 | . 1 . . 2 . Weapon Failures 3 | . 1 . . 2 . Overload Shots . | . . . . . . Overflow Damage 35 | . . . 15 20 . Projectiles 35 | . . . 15 20 . Explosions . | . . . . . . Melee . | . . . . . . Knockbacks 26 | . . . 9 17 . Impact 1 | . . . 1 . . Kinetic 24 | . . . 8 16 . Secondary 1 | . . . . 1 . Self-Inflicted Damage 33 | . . 13 . . 20 Shots . | . . . . . . Rammed 19 | . 2 1 4 5 7 Targets Rammed 19 | . 2 1 4 5 7 Kicked . | . . . . . . Crushed . | . . . . . . Highest Temperature 386 | . 183 205 324 386 127 Average Temperature 91 | . 52 72 86 169 64 Received Heat Transfer 1336 | . 480 66 411 339 40 Effects 1 | . . . . 1 . Shutdowns 1 | . . . . 1 . Siege Activations . | . . . . . . Martial Activations . | . . . . . . Shielding Activations . | . . . . . . Robots Disrupted . | . . . . . . Combat Hostiles . | . . . . . . Robots Corrupted . | . . . . . . Combat Hostiles . | . . . . . . Parts Fried . | . . . . . . Impact Corruptions 1 | . . . . 1 . Robots Melted . | . . . . . . Combat Hostiles . | . . . . . . Parts Melted . | . . . . . . Heat Transferred 100 | . 100 . . . . Parts Sabotaged . | . . . . . . Parts Stolen . | . . . . . . Parts Stripped . | . . . . . . Power Chain Reactions . | . . . . . . Alert | -11 -10 -10 -9 -9 -9 ------- Run | Yrd Mat Min Mat Min Exi Maximum Alert Level 1 | . . . 1 . . Low Security (%) 73 | . 100 100 44 100 . Level 1 26 | . . . 55 . . Level 2 . | . . . . . . Level 3 . | . . . . . . Level 4 . | . . . . . . Level 5 . | . . . . . . High Security . | . . . . . . Max Security . | . . . . . . Peak Influence 322 | . 57 50 322 121 . Initial 105 | . . . 8 105 . Average 108 | . 14 5 206 40 . Influence Increases 1782 | . 362 93 1010 317 . Destroy 0b10 Robot/C 1080 | . 240 60 540 240 . Destroy 0b10 Robot/NC 135 | . 35 20 70 10 . Destroy Leader 298 | . 54 10 184 50 . Allied During Kill 67 | . . 3 64 . . Successful Hack 65 | . 32 . 33 . . Select Force Hacks 30 | . . . 30 . . Disable Machine 45 | . . . 45 . . Destroy Structure 47 | . 1 . 29 17 . Lose Combat Pursuer 15 | . . . 15 . . Influence Decreases 1782 | . 362 70 763 587 . Entered New Map 180 | . . . 15 165 . Time Decay 1466 | . 352 70 668 376 . Lost Part 96 | . 10 . 40 46 . Lost Ally 40 | . . . 40 . . Squads Dispatched 8 | . 3 . 4 1 . Investigation 3 | . 1 . 2 . . Extermination . | . . . . . . Reinforcement 5 | . 2 . 2 1 . Assault . | . . . . . . Garrison . | . . . . . . Intercept . | . . . . . . Searches Triggered . | . . . . . . Construction Impeded 1 | . . . . 1 . Haulers Reinforced . | . . . . . . Active Scanning Responses . | . . . . . . Cargo Convoy Interrupts . | . . . . . . Stealth | -11 -10 -10 -9 -9 -9 --------- Run | Yrd Mat Min Mat Min Exi Distress Signals 4 | . 1 . 2 1 . Communications Jammed . | . . . . . . Distress Signals . | . . . . . . Times Spotted 89 | . 25 5 39 12 8 Peak Tracking Total 9 | . 3 3 5 3 9 Tactical Retreats 1 | . . . 1 . . Traps | -11 -10 -10 -9 -9 -9 ------- Run | Yrd Mat Min Mat Min Exi Traps Triggered 5 | . 4 . 1 . . Indirectly . | . . . . . . Trap Hack Attempts . | . . . . . . Triggered . | . . . . . . Disarmed . | . . . . . . Reprogrammed . | . . . . . . Reused . | . . . . . . Traps Extracted . | . . . . . . Installed . | . . . . . . Triggered . | . . . . . . Machines | -11 -10 -10 -9 -9 -9 ---------- Run | Yrd Mat Min Mat Min Exi Machines Disabled 4 | . 1 . 3 . . Max in Single Turn 1 | . 1 . 1 . . Machines Repaired . | . . . . . . Machines Dismantled . | . . . . . . Machines Sabotaged . | . . . . . . Overloaded Fab Kills . | . . . . . . Hacking | -11 -10 -10 -9 -9 -9 --------- Run | Yrd Mat Min Mat Min Exi Machines Accessed 18 | . 4 . 13 . 1 Terminals 12 | . 3 . 9 . . Fabricators . | . . . . . . Repair Stations 1 | . . . 1 . . Recycling Units 2 | . 1 . 1 . . Scanalyzers 2 | . . . 2 . . Garrison Access . | . . . . . . Total Hacks 53 | . 10 . 42 . 1 Successful 34 | . 6 . 27 . 1 Failed 18 | . 4 . 14 . . Catastrophic 1 | . . . 1 . . Database Lockouts 1 | . . . 1 . . Manual 34 | . 6 . 27 . 1 Terminals 41 | . 9 . 32 . . Fabricators . | . . . . . . Repair Stations 2 | . . . 2 . . Recycling Units 2 | . 1 . 1 . . Scanalyzers 7 | . . . 7 . . Garrison Access . | . . . . . . Terminal Hacks 15 | . 3 . 11 . 1 Part Schematic 1 | . . . 1 . . Robot Analysis 2 | . . . 2 . . Prototype ID Bank 5 | . . . 5 . . Branch Access Points 2 | . 1 . 1 . . Hauler Manifests 2 | . 1 . 1 . . Zone Layout 2 | . 1 . 1 . . Proto ID Catalog 1 | . . . . . 1 Fabricator Hacks . | . . . . . . Repair Station Hacks . | . . . . . . Recycling Unit Hacks 2 | . 1 . 1 . . Retrieve Components 2 | . 1 . 1 . . Scanalyzer 6 | . . . 6 . . Insert Component 3 | . . . 3 . . Analyze 3 | . . . 3 . . Garrison Access Hacks . | . . . . . . Unauthorized Hacks 11 | . 2 . 9 . . Terminals 9 | . 2 . 7 . . Botnet 9 | . 2 . 7 . . Fabricators . | . . . . . . Repair Stations 1 | . . . 1 . . Patch 1 | . . . 1 . . Recycling Units . | . . . . . . Scanalyzers 1 | . . . 1 . . Extract 1 | . . . 1 . . Garrison Access . | . . . . . . Data Cores Recovered 1 | . . . 1 . . Used . | . . . . . . Hacking Detections 14 | . 4 . 10 . . Full Trace Events 1 | . . . 1 . . Feedback Events . | . . . . . . Feedback Blocked . | . . . . . . Robot Schematics Acquired . | . . . . . . Robots Built . | . . . . . . Authchips . | . . . . . . Time . | . . . . . . Total Robot Build Rating . | . . . . . . Part Schematics Acquired 5 | . . . 5 . . Parts Built . | . . . . . . Authchips . | . . . . . . Time . | . . . . . . Total Part Build Rating . | . . . . . . Part Studies Acquired . | . . . . . . Parts Repaired . | . . . . . . Time . | . . . . . . Parts Recycled . | . . . . . . Recycled Matter . | . . . . . . Retrieved Matter . | . . . . . . Retrieved Components 12 | . 10 . 2 . . Parts Scanalyzed 3 | . . . 3 . . Part Schematics Acquired 3 | . . . 3 . . Parts Damaged . | . . . . . . Bothacking | -11 -10 -10 -9 -9 -9 ------------ Run | Yrd Mat Min Mat Min Exi Used RIF Installer . | . . . . . . Robots Hacked . | . . . . . . Non-combat . | . . . . . . Combat . | . . . . . . Robot Hacks Applied . | . . . . . . Relay Couplers Released . | . . . . . . Fabnet Peak Effective % . | . . . . . . Robots Rewired . | . . . . . . Allies Hacked . | . . . . . . Hacks Repelled . | . . . . . . Allies | -11 -10 -10 -9 -9 -9 -------- Run | Yrd Mat Min Mat Min Exi Total Allies 3 | . . 3 . . . Largest Group 3 | . . 3 3 . . Highest-Rated Group 40 | . . 40 40 . . Highest-Rated Ally 16 | . . 16 16 . . Total Orders . | . . . . . . Ally Attacks 61 | . . 1 60 . . Total Damage 594 | . . 14 580 . . Kills 13 | . . 1 12 . . Allies Corrupted 1 | . . . 1 . . Allies Melted . | . . . . . . Intel | -11 -10 -10 -9 -9 -9 ------- Run | Yrd Mat Min Mat Min Exi Active Infowar (turns) 928 | . . . 782 . 146 Terrain 928 | . . . 782 . 146 Robot Analysis Total 2 | . . . 2 . . Derelict Logs Recovered 1 | . . . . 1 . Drone Launches . | . . . . . . Drone Recoveries . | . . . . . . Exploration | -11 -10 -10 -9 -9 -9 ------------- Run | Yrd Mat Min Mat Min Exi Turns Passed 6311 | . 1428 532 2792 1208 351 Spaces Moved 3002 | 1 639 348 1307 474 233 Core . | . . . . . . Treads 1419 | . 120 . 824 474 1 Legs 117 | 1 116 . . . . Wheels 1466 | . 403 348 483 . 232 Hover . | . . . . . . Flight . | . . . . . . Fastest Speed 116 | 120 120 140 116 225 140 Average Speed 181 | 120 169 140 189 225 140 Slowest Speed 480 | 120 480 140 240 225 225 Overloaded Moves . | . . . . . . Propulsion Burnouts . | . . . . . . Robots Hopped . | . . . . . . Potential Cave-ins . | . . . . . . Cave-ins Triggered . | . . . . . . Exploration Rate (%) 65 | 2 88 81 92 77 50 Regions Visited 5 Branch Regions 3 Pre-discovered Areas . | . . . . . . Known Exits Taken 2 | . 1 . 1 . . Unknown Exits Taken 3 | 1 . 1 . 1 . Scrap Searched 2 | . . 1 . 1 . Spaces Dug 16 | . . . 16 . . Terrain Destroyed 48 | . . . 30 18 . Melee . | . . . . . . Projectile 36 | . . . 18 18 . AOE 12 | . . . 12 . . Terrain Rammed . | . . . . . . Walls Destroyed . | . . . . . . Machines Disabled . | . . . . . . Actions | -11 -10 -10 -9 -9 -9 --------- Run | Yrd Mat Min Mat Min Exi Total 3443 | . 804 370 1492 529 248 Wait 28 | . 13 4 8 3 . Move 2997 | . 638 347 1306 473 233 Hop . | . . . . . . Pick Up 52 | . 19 2 28 2 1 Fast Attach 10 | . 6 . 3 . 1 Attach 13 | . 5 . 3 4 1 Detach 4 | . 2 . . . 2 Swap 50 | . 19 7 22 . 2 Drop 41 | . 6 . 34 . 1 Fire 229 | . 94 9 84 42 . Melee . | . . . . . . Ram 8 | . . 1 . . 7 Kick . | . . . . . . Crush 11 | . 2 . 4 5 . Escape Stasis . | . . . . . . Rewire . | . . . . . . Trap . | . . . . . . Miscellaneous . | . . . . . . Route ------- -11/Scrapyard -10/Materials (discovered 3 exits: *Mat x2 / *Min) -10/Mines (discovered 2 exits: *Mat / [*Sub]) -9/Materials (discovered 4 exits: [*Mat x3] / *Min) -9/Mines (discovered 4 exits: [*Mat x2] / *Exi / [*Zio]) -9/Exiles (discovered 1 exit: [*Min]) History --------- Turn | Location | Event 1 | -11/Scrapyard | Discovered new exit (range 0) 1 | -11/Scrapyard | Entered Materials 151 | -10/Materials | Discovered new exit (range 4) 308 | -10/Materials | Build established: Mutant 351 | -10/Materials | Identified exit to Mines 459 | -10/Materials | Discovered new exit (range 7) 905 | -10/Materials | Core integrity fell below 50% 1429 | -10/Materials | Entered Mines 1440 | -10/Mines | Core integrity fell below 20% 1529 | -10/Mines | Assisted by bots powering up and referring to "LRC-V3" 1626 | -10/Mines | Found a Scrap Suit stashed away for nefarious purposes 1657 | -10/Mines | Discovered new exit (range 13) 1872 | -10/Mines | Received a Rocket Launcher from a helpful Derelict 1942 | -10/Mines | Discovered new exit (range 12) 1961 | -10/Mines | Entered Materials 1961 | -9/Materials | Accompanied by 3 allies 1961 | -9/Materials | Evolved 2 slots: Propulsion x1, Utility x1 2039 | -9/Materials | Discovered new exit (range 10) 2155 | -9/Materials | Discovered new exit (range 13) 2530 | -9/Materials | Discovered new exit (range 12) 2631 | -9/Materials | Identified exit to Mines 3047 | -9/Materials | Central database locked down 4342 | -9/Materials | Discovered new exit (range 5) 4753 | -9/Materials | Entered Mines 4837 | -9/Mines | Met a Derelict bent on vengeance 4940 | -9/Mines | Learned location of 1 exit from Materials 5165 | -9/Mines | Discovered new exit (range 16) 5332 | -9/Mines | Discovered new exit (range 5) 5517 | -9/Mines | System corruption reached 10% 5572 | -9/Mines | A Derelict revealed a hidden shortcut to a safe place 5950 | -9/Mines | Deemed a non-threat by the Exiles lab entrance 5950 | -9/Mines | Discovered new exit (range 5) 5961 | -9/Mines | Entered Exiles 5987 | -9/Exiles | Discovered new exit (range 15) 6004 | -9/Exiles | Met 8R-AWN 6024 | -9/Exiles | Met EX-HEX 6071 | -9/Exiles | Met EX-BIN 6088 | -9/Exiles | Aligned with FarCom system 6090 | -9/Exiles | Given EX-Vault access code 6123 | -9/Exiles | Opened EX-Vault 6132 | -9/Exiles | Found AWS/Thermal 6153 | -9/Exiles | Found Trap Reconfigurator 6179 | -9/Exiles | Warned to stay clear of 0b10 Research branches 6227 | -9/Exiles | Met EX-DEC 6298 | -9/Exiles | Attacked by the Exiles 6305 | -9/Exiles | Core integrity fell below 50% 6312 | -9/Exiles | Core integrity fell below 20% 6312 | -9/Exiles | Destroyed by as-35709 with Assembled Blade Last Messages --------------- 06304_ HV Slug penetrates Wall. 06304_ Penetrated by HV Slug. 06304_ Wheel destroyed. 06304_ HV Slug penetrates Earth. 06305_ Slammed into 8R-AWN. 06306_ Z=BH V# GT1&A%E4YG7XMHNWGQUSSL3,OE 06306_ Imp. Terrain Scanner destroyed. 06307_ Penetrated by HV Slug. 06307_ HV Slug penetrates Earth. 06307_ Penetrated by HV Slug. 06307_ HV Slug penetrates Earth. 06309_ Penetrated by HV Slug. 06309_ HV Slug penetrates Earth. 06309_ Penetrated by HV Slug. 06309_ HV Slug penetrates Earth. 06311_ Penetrated by HV Slug. 06311_ HV Slug penetrates Earth. 06311_ Penetrated by HV Slug. 06311_ HV Slug penetrates Earth. 06311_ as-38794 destroyed. Map ----- +----------------------------------------------------+ | """#?????????????????????????????????????????????? | | """#?????????????????????????????????????????????? | | """#?????????????????????????????????????????????? | | """#?????????????????????????????????????????????? | | """#?????????????????????????????????????????????? | | """#?????????????????????????????????????????????? | | """#?????????????????????????????????????????????? | | """#?????????????????????????????????????????????? | | """"?????????????????????????????????????????????? | | """#?????????????????????????????????????????????? | | """??????????????????????????????????????????????? | | #?????????????????????????????????????????????? | | """#?????????????????????????????????????????????? | | ####?????????????????????????????????????????????? | | ?????????????????????????????????????????????????? | | ?????????????????????????????????????????????????? | | ?#???????????????????????????????????????????? < | | ##########???????????????????????????????????? | | """""""""##????????????????????????????#?????? | | " """ """"##????????????###??????????????????# # | | "" " #????????????# #????????????????## # | | " """#?#?#????????# #????????????????# | | " "#???????????##;##???????????????# | | " "##??#??????##" ##??#??????????## | | ""###???????#" ;#????????????## #? | | """#??????##"a@ ##??????????#?# #? | | "#????### aga ###???????#### #?? | | ##???# % ########## #?? | | ##?## #""""## #??? | | ###a * ##?? | | ## * #?? | | ##"# ##? | | a ""#?#"""""#### ## | | a#"""##?#######??#### * | | ######??????????????##### | | ##???????????????????????### | | " ##??????????????????????????### | | """ ""#????#????????????????????????### | | ""#" "##??????????????????????????????#" | | """##"""""""##???????????????????????????????#### | | """###########???????????????????????????????????# | | ###????????????????#?????????????????????????????# | | ?????????????????????????????????????????????????? | | ?????????????????????????????????????????????????? | | ?????????????????????????????????????????????????? | | ?????????????????????????????????????????????????? | | ?????????????????????????????????????????????????? | | ?????????????????????????????????????????????????? | | ?????????????????????????????????????????????????? | | ?????????????????????????????????????????????????? | +----------------------------------------------------+ Best States ------------- Heat Dissipation 42 Energy Generation 14 Energy Capacity 250 Matter Stores 300 Matter Capacity 300 Sight Range 16 Terrain Scan Range 16 Terrain Scan Density 10 Armor Coverage 450 Power Shielding 33 Evasion (%) 55 Targeting Accuracy 5 Recoil Reduction 3 Item Schematics ----------------- Imp. Flight Unit | -9/Materials | Scanalyzed Wheel | -9/Materials | Extracted Med. Storage Unit | -9/Materials | Hacked Hacking Suite | -9/Materials | Scanalyzed Huge Storage Unit | -9/Materials | Scanalyzed Robot Schematics ------------------ None Fabricated ------------ Nothing Repaired ---------- Nothing Studied --------- None Alien Tech Used ----------------- None Achievements -------------- None Challenges ------------ None Game ------ Seed CommConstructFlail Manual? 0 Play Time 00:26:21 Cumulative 302.3 hours Start 2026.01.11 @ 14:07:23 End 2026.01.11 @ 14:32:02 Sessions 1 Manual Loads 0 Difficulty Rogue Special Mode None Game No. 364 Rogue 363 Adventurer 1 Explorer 0 Win Type - Total 3 Types 1/0/0/1/1/0/0/0/0/0 Lore% 76 Gallery% 69 Achievement% 58 Wizard Run 0 Options --------- Layout 0 ASCII 0 Keyboard 0 Movement Numpad Keybinds 0 Fullscreen 0 Font 20/SmallcapsGlow Map View 76x50 Zoom Use 0% Tactical HUD 1 Map Filters NONE Filters NONE Steam 1 RUN: d132bdfc-34fe-48f3-b295-bb87935a71c7